[Event "Czech Open-Rapid 2022"]
[Site "Pardubice"]
[Date "2022.07.21"]
[Round "5.17"]
[White "Klimakovs, Sergejs"]
[Black "Melichar, Vojtech"]
[Result "1-0"]
[ECO "C44"]
[WhiteElo "2266"]
[BlackElo "1907"]
[Annotator "TA"]
[PlyCount "71"]
[EventDate "2022.07.20"]
[EventType "swiss"]
[EventCountry "CZE"]
[SourceTitle "playchess.com"]
[Source "ChessBase"]
[SourceQuality "1"]
[TimeControl "1200+10"]

{[%evp 11,71,39,51,48,36,19,22,23,33,24,25,23,26,6,0,0,5,0,0,-20,12,-16,0,-7,-11,-8,0,0,0,0,11,13,18,6,6,16,64,43,39,34,34,0,0,0,0,0,122,0,233,170,113,68,743,750,734,736,737,722,731,619,493,426]} 1. e4 e5 2. Nf3 Nc6 3. d4 exd4 4. Nxd4 Nf6 5. Nxc6 dxc6 6. Qxd8+ Kxd8 7. f3 {C45: Scotch Game.} Be6 8. Be3 Nd7 9. Nc3 {The position is equal.} Bb4 {[#]} 10. Bd2 $146 ({Predecessor:} 10. Kf2 Bc5 11. Ne2 Bxe3+ 12. Kxe3 Ke7 13. Nd4 g6 14. Rd1 Rad8 15. Be2 f5 16. exf5 Bxf5 17. Nxf5+ gxf5 {½-½ (47) Svrsek,R (1958)-Bichik,A (1868) LSS email 2012}) 10... a5 11. a3 Bd6 12. Be2 f6 13. f4 h5 14. Bf3 Ke7 15. Be3 Bc5 (15... Nb6 $5 {[%cal Rb6c4]}) 16. Kf2 g5 17. g3 Bxe3+ 18. Kxe3 Nb6 19. h4 Nc4+ 20. Kf2 g4 21. Be2 Rhd8 22. Bxc4 Bxc4 23. Rhd1 {Prevents Rd2+.} b5 (23... Rd6 $11 {should be considered.}) 24. Rxd8 $14 Rxd8 {[%mdl 4096] Endgame KRB-KRN} 25. Rd1 {Inhibits Rd2+. Strongly threatening Rxd8.} Rd6 26. b3 Bf7 27. b4 a4 28. Ke3 Bc4 (28... Rxd1 $11 {keeps the balance.} 29. Nxd1 c5 30. bxc5 b4 31. axb4 a3) 29. e5 (29. Re1 $16) 29... Rxd1 $2 (29... fxe5 $11 30. fxe5 Rxd1 31. Nxd1 c5 32. bxc5 b4 33. axb4 a3) 30. exf6+ $18 Kxf6 {[#] ( -> ...Rg1)} 31. Nxd1 $11 {KB-KN} Bd5 $2 {[%mdl 8192] This costs Black the game.} (31... c5 $14) 32. Kd4 $18 {White is clearly winning.} Bf3 33. Nb2 Bd5 34. Nd3 Bf3 35. Nc5 Bd5 36. Na6 {Weighted Error Value: White=0.10 (very precise) /Black=0.33} 1-0

[Event "Czech Open-Rapid 2022"]
[Site "Pardubice"]
[Date "2022.07.21"]
[Round "5.19"]
[White "Gressmann, Moritz"]
[Black "Kavalir, Jan"]
[Result "1-0"]
[ECO "B24"]
[WhiteElo "2114"]
[BlackElo "1987"]
[Annotator "NA RC"]
[PlyCount "69"]
[EventDate "2022.07.20"]
[EventType "swiss"]
[EventCountry "CZE"]
[SourceTitle "playchess.com"]
[Source "ChessBase"]
[SourceQuality "1"]
[TimeControl "1200+10"]

1. e4 {[%emt 0:00:02]} c5 {[%emt 0:00:01]} 2. Nc3 {[%emt 0:00:02]} Nc6 {[%emt 0:00:00]} 3. Bb5 {[%emt 0:00:01]} Nd4 {[%emt 0:00:05]} 4. Nf3 {[%emt 0:00:01]} Nxb5 {[%emt 0:00:02]} 5. Nxb5 {[%emt 0:00:01]} a6 {[%emt 0:00:03]} 6. Nc3 {[%emt 0:00:01]} d6 {[%emt 0:00:10]} 7. d4 {[%emt 0:00:02]} cxd4 {[%emt 0:00:03]} 8. Qxd4 {[%emt 0:00:02]} e5 {[%emt 0:00:02]} 9. Qd3 {[%emt 0:00:01]} Be7 {[%emt 0:00:37]} 10. a4 {[%emt 0:00:16]} b6 {[%emt 0:01:08]} 11. Be3 {[%emt 0:00:24]} Nf6 {[%emt 0:00:36]} 12. O-O {[%emt 0:00:15]} h6 {[%emt 0:02:11]} 13. Rfd1 {[%emt 0:00:19]} Be6 {[%emt 0:00:48]} 14. Nd2 {[%emt 0:01:59]} Qc7 {[%emt 0:02:24]} 15. Nd5 {[%emt 0:00:10]} Nxd5 {[%emt 0:00:38]} 16. exd5 {[%emt 0:00:02]} Bg4 {[%emt 0:00:12]} 17. f3 {[%emt 0:00:07]} Bd7 {[%emt 0:00:02]} 18. b4 {[%emt 0:05:50]} O-O {[%emt 0:01:44]} 19. c4 {[%emt 0:00:02]} f5 {[%emt 0:00:21]} 20. Nb3 {[%emt 0:01:10]} Rfc8 {[%emt 0:01:30]} 21. c5 {[%emt 0:00:09]} Bg5 {[%emt 0:01:56]} 22. cxb6 {[%emt 0:00:27]} Bxe3+ {[%emt 0:00:15]} 23. Qxe3 {[%emt 0:00:02]} Qc3 {[%emt 0:00:16]} 24. Qxc3 {[%emt 0:00:29]} Rxc3 {[%emt 0:00:01]} 25. Na5 {[%emt 0:00:01]} Kf8 {[%emt 0:03:06]} 26. Rdc1 {[%emt 0:00:36]} Rxc1+ {[%emt 0:03:07]} 27. Rxc1 {[%emt 0:00:02]} Rb8 {[%emt 0:00:07]} 28. b7 {[%emt 0:01:07]} Ke8 {[%emt 0:00:43]} 29. b5 {[%emt 0:00:05]} axb5 {[%emt 0:00:27]} 30. axb5 {[%emt 0:00:01]} Kd8 {[%emt 0:01:00]} 31. b6 {[%emt 0:00:47]} Ke8 {[%emt 0:01:02]} 32. Rc7 {[%emt 0:00:07]} g5 {[%emt 0:00:18]} 33. Nc6 {[%emt 0:00:07]} Bxc6 {[%emt 0:00:06]} 34. dxc6 {[%emt 0:00:04]} Kd8 {[%emt 0:00:28]} 35. Rh7 {[%emt 0:00:07]} 1-0

[Event "Czech Open-Rapid 2022"]
[Site "Pardubice"]
[Date "2022.07.21"]
[Round "5.20"]
[White "Freibergs, Andrejs"]
[Black "Polak, Benedikt"]
[Result "0-1"]
[ECO "D02"]
[WhiteElo "1574"]
[BlackElo "2120"]
[Annotator "NA RC"]
[PlyCount "86"]
[EventDate "2022.07.20"]
[EventType "swiss"]
[EventCountry "CZE"]
[SourceTitle "playchess.com"]
[Source "ChessBase"]
[SourceQuality "1"]
[TimeControl "1200+10"]

1. d4 {[%emt 0:00:04]} d5 {[%emt 0:00:17]} 2. Nf3 {[%emt 0:00:02]} e6 {[%emt 0:00:13]} 3. e3 {[%emt 0:00:02]} c5 {[%emt 0:00:17]} 4. b3 {[%emt 0:00:04]} Nf6 {[%emt 0:00:22]} 5. Bb2 {[%emt 0:00:02]} Nc6 {[%emt 0:01:28]} 6. Bd3 {[%emt 0:00:03]} Be7 {[%emt 0:00:50]} 7. O-O {[%emt 0:00:04]} O-O {[%emt 0:00:06]} 8. Nbd2 {[%emt 0:00:02]} b6 {[%emt 0:00:02]} 9. a3 {[%emt 0:00:02]} Bb7 {[%emt 0:00:11]} 10. Ne5 {[%emt 0:00:31]} g6 {[%emt 0:01:28]} 11. Qe2 {[%emt 0:02:20]} Qc7 {[%emt 0:02:18]} 12. Rac1 {[%emt 0:01:11]} Rfd8 {[%emt 0:01:59]} 13. f4 {[%emt 0:00:23]} cxd4 {[%emt 0:00:31]} 14. exd4 {[%emt 0:00:14]} Bf8 {[%emt 0:00:38]} 15. Ndf3 {[%emt 0:01:57]} Bh6 {[%emt 0:03:10]} 16. Nxc6 {[%emt 0:03:15]} Bxc6 {[%emt 0:00:32]} 17. Ne5 {[%emt 0:00:01]} Bb7 {[%emt 0:00:24]} 18. a4 {[%emt 0:04:53]} Rac8 {[%emt 0:01:10]} 19. Ba3 {[%emt 0:00:22]} Qc3 {[%emt 0:02:44]} 20. Be7 {[%emt 0:00:53]} Qxd4+ {[%emt 0:00:40]} 21. Kh1 {[%emt 0:00:01]} Ne4 {[%emt 0:00:22]} 22. Bxe4 {[%emt 0:00:10]} Re8 {[%emt 0:00:41]} 23. Bxg6 {[%emt 0:00:59]} hxg6 {[%emt 0:00:22]} 24. Bf6 {[%emt 0:01:21]} Bg7 {[%emt 0:00:01]} 25. Bxg7 {[%emt 0:01:34]} Kxg7 {[%emt 0:00:02]} 26. Nf3 {[%emt 0:00:41]} Qc3 {[%emt 0:00:31]} 27. Ne5 {[%emt 0:01:07]} Rh8 {[%emt 0:00:25]} 28. Rf3 {[%emt 0:00:23]} Qb2 {[%emt 0:00:34]} 29. Nd3 {[%emt 0:00:02]} Qd4 {[%emt 0:01:11]} 30. Qe5+ {[%emt 0:00:59]} Qxe5 {[%emt 0:00:02]} 31. fxe5 {[%emt 0:00:01]} Rc7 {[%emt 0:00:41]} 32. Rcf1 {[%emt 0:00:53]} Ba6 {[%emt 0:00:15]} 33. R1f2 {[%emt 0:00:21]} Bxd3 {[%emt 0:00:13]} 34. Rxd3 {[%emt 0:00:01]} Rhc8 {[%emt 0:00:21]} 35. Rdf3 {[%emt 0:00:19]} Rxc2 {[%emt 0:00:19]} 36. Rxf7+ {[%emt 0:00:01]} Kh6 {[%emt 0:00:01]} 37. h3 {[%emt 0:00:07]} Rxf2 {[%emt 0:00:04]} 38. Rxf2 {[%emt 0:00:01]} Rc1+ {[%emt 0:00:12]} 39. Kh2 {[%emt 0:00:02]} Re1 {[%emt 0:00:02]} 40. Rf7 {[%emt 0:00:08]} Rxe5 {[%emt 0:00:12]} 41. Rxa7 {[%emt 0:00:00]} d4 {[%emt 0:00:02]} 42. Rd7 {[%emt 0:00:08]} Rd5 43. Kg3 Re5 0-1

[Event "Czech Open-Rapid 2022"]
[Site "Pardubice"]
[Date "2022.07.21"]
[Round "5.21"]
[White "Contos, Vaclav sr"]
[Black "Kraus, Ondrej"]
[Result "0-1"]
[ECO "A56"]
[WhiteElo "2074"]
[BlackElo "1993"]
[Annotator "NA RC"]
[PlyCount "134"]
[EventDate "2022.07.20"]
[EventType "swiss"]
[EventCountry "CZE"]
[SourceTitle "playchess.com"]
[Source "ChessBase"]
[SourceQuality "1"]
[TimeControl "1200+10"]

1. d4 {[%emt 0:00:03]} Nf6 {[%emt 0:00:01]} 2. c4 {[%emt 0:00:01]} c5 {[%emt 0:00:02]} 3. Nf3 {[%emt 0:00:04]} cxd4 {[%emt 0:00:02]} 4. Nxd4 {[%emt 0:00:01]} Nc6 {[%emt 0:00:06]} 5. Nc3 {[%emt 0:00:02]} e5 {[%emt 0:01:15]} 6. Nc2 {[%emt 0:00:10]} Bc5 {[%emt 0:00:24]} 7. Be3 {[%emt 0:01:05]} Qe7 {[%emt 0:01:11]} 8. Qd2 {[%emt 0:02:14]} O-O {[%emt 0:01:21]} 9. Nd5 {[%emt 0:00:46]} Nxd5 {[%emt 0:00:25]} 10. cxd5 {[%emt 0:00:01]} Bxe3 {[%emt 0:00:58]} 11. Qxe3 {[%emt 0:00:11]} Nb4 {[%emt 0:00:44]} 12. Nxb4 {[%emt 0:00:19]} Qxb4+ {[%emt 0:00:04]} 13. Qd2 {[%emt 0:00:01]} Qe4 {[%emt 0:03:09]} 14. e3 {[%emt 0:01:33]} Kh8 {[%emt 0:02:18]} 15. Qd3 {[%emt 0:00:12]} Qh4 {[%emt 0:02:01]} 16. Be2 {[%emt 0:01:19]} d6 {[%emt 0:00:16]} 17. g3 {[%emt 0:01:45]} Qf6 {[%emt 0:00:36]} 18. O-O {[%emt 0:01:15]} Bh3 {[%emt 0:00:22]} 19. Rfc1 {[%emt 0:00:11]} e4 {[%emt 0:01:07]} 20. Qxe4 {[%emt 0:00:47]} Qxb2 {[%emt 0:00:02]} 21. Qc2 {[%emt 0:00:03]} Qe5 {[%emt 0:00:11]} 22. Bf3 {[%emt 0:00:17]} Bf5 {[%emt 0:01:09]} 23. Qc3 {[%emt 0:00:24]} Qxc3 {[%emt 0:00:14]} 24. Rxc3 {[%emt 0:00:01]} Rfc8 {[%emt 0:00:08]} 25. Rac1 {[%emt 0:00:09]} g5 {[%emt 0:00:17]} 26. Kf1 {[%emt 0:00:59]} Kg7 {[%emt 0:00:16]} 27. Ke2 {[%emt 0:00:13]} Kf6 {[%emt 0:00:14]} 28. Rxc8 {[%emt 0:00:02]} Rxc8 {[%emt 0:00:02]} 29. Rxc8 {[%emt 0:00:01]} Bxc8 {[%emt 0:00:02]} 30. Be4 {[%emt 0:00:03]} Bf5 {[%emt 0:00:20]} 31. Kd3 {[%emt 0:00:02]} b5 {[%emt 0:01:37]} 32. g4 {[%emt 0:01:57]} Bxg4 {[%emt 0:00:47]} 33. Bxh7 {[%emt 0:00:02]} Ke5 {[%emt 0:00:21]} 34. Bg8 {[%emt 0:00:13]} f5 {[%emt 0:00:42]} 35. Be6 {[%emt 0:00:57]} Bf3 {[%emt 0:00:08]} 36. Bd7 {[%emt 0:00:26]} Bxd5 {[%emt 0:00:42]} 37. Bxb5 {[%emt 0:00:02]} Bxa2 {[%emt 0:00:04]} 38. Ba6 {[%emt 0:00:05]} d5 {[%emt 0:00:30]} 39. Kc3 {[%emt 0:02:18]} Bc4 {[%emt 0:00:03]} 40. Bc8 {[%emt 0:00:03]} f4 {[%emt 0:00:09]} 41. Bd7 {[%emt 0:02:13]} fxe3 {[%emt 0:00:11]} 42. fxe3 {[%emt 0:00:02]} Ke4 {[%emt 0:00:07]} 43. Kd2 {[%emt 0:00:01]} a5 {[%emt 0:00:19]} 44. Be8 {[%emt 0:00:01]} Kf3 {[%emt 0:00:23]} 45. Bc6 {[%emt 0:00:11]} Kg2 {[%emt 0:00:24]} 46. e4 dxe4 {[%emt 0:00:07]} 47. Bxe4+ {[%emt 0:00:02]} Kxh2 {[%emt 0:00:06]} 48. Kc3 {[%emt 0:00:01]} Be6 {[%emt 0:00:45]} 49. Bf3 {[%emt 0:00:17]} Kg3 {[%emt 0:00:07]} 50. Be2 {[%emt 0:00:01]} Kf4 {[%emt 0:00:04]} 51. Kb2 {[%emt 0:00:04]} Ke3 {[%emt 0:00:04]} 52. Bh5 {[%emt 0:00:02]} Kd4 {[%emt 0:00:04]} 53. Ka3 {[%emt 0:00:01]} Bd7 {[%emt 0:00:13]} 54. Be2 {[%emt 0:00:04]} Kc5 {[%emt 0:00:15]} 55. Bf3 {[%emt 0:00:07]} Kd4 {[%emt 0:00:31]} 56. Bh5 {[%emt 0:00:17]} Ke3 {[%emt 0:00:05]} 57. Bd1 {[%emt 0:00:12]} Bc6 {[%emt 0:00:05]} 58. Bg4 {[%emt 0:00:07]} Bf3 {[%emt 0:00:03]} 59. Bf5 {[%emt 0:00:01]} Kf4 {[%emt 0:00:11]} 60. Bd7 {[%emt 0:00:05]} Be4 {[%emt 0:00:08]} 61. Ka4 {[%emt 0:01:03]} Bf5 {[%emt 0:00:03]} 62. Bc6 {[%emt 0:00:01]} g4 {[%emt 0:00:04]} 63. Kxa5 {[%emt 0:00:28]} g3 {[%emt 0:00:44]} 64. Bg2 {[%emt 0:00:02]} Ke3 {[%emt 0:00:07]} 65. Kb4 {[%emt 0:00:03]} Kf2 {[%emt 0:00:03]} 66. Bd5 {[%emt 0:00:04]} Bg4 {[%emt 0:00:13]} 67. Kc3 Bf3 {[%emt 0:00:06]} 0-1

[Event "Czech Open-Rapid 2022"]
[Site "Pardubice"]
[Date "2022.07.21"]
[Round "5.22"]
[White "Jonsson, Gauti Pall"]
[Black "Savitha Shri B"]
[Result "1-0"]
[ECO "B20"]
[WhiteElo "2071"]
[BlackElo "2278"]
[Annotator "TA"]
[PlyCount "69"]
[EventDate "2022.07.20"]
[EventType "swiss"]
[EventCountry "CZE"]
[SourceTitle "playchess.com"]
[Source "ChessBase"]
[SourceQuality "1"]
[TimeControl "1200+10"]

{[%evp 9,69,55,58,25,18,17,72,58,44,50,59,17,29,0,0,-112,-122,-107,-116,-176,-75,-200,-200,-279,-294,-295,-302,-328,-320,-336,-329,-505,421,420,416,424,414,407,445,437,440,442,406,392,381,98,92,92,810,795,1658,1567,29989,1118,29990,29991,29991,29992,29992,29993,29993,29994]} 1. e4 {[%emt 0:00:06]} c5 {[%emt 0:00:01]} 2. Be2 {[%emt 0:00:20]} Nc6 {[%emt 0:00:04]} 3. f4 {[%emt 0:00:14]} e5 {[%emt 0:00:36]} 4. d3 {[%emt 0:01:07] [#]} Qc7 $146 {[%emt 0:00:47]} ({Predecessor:} 4... exf4 5. Bxf4 Nf6 6. Nc3 d5 7. exd5 Nxd5 8. Nxd5 Qxd5 9. Bf3 Qe6+ 10. Ne2 Nd4 {½-½ (23) Kovalev,V (2648)-Kamsky,G (2665) Chess.com INT 2021}) 5. Nc3 {[%emt 0:00:27]} Nf6 {[%emt 0:00:13]} 6. Nf3 {[%emt 0:00:27] B31: Sicilian: 2...Nc6 3 Bb5 g6.} exf4 {[%emt 0:00:25]} 7. O-O {[%emt 0:00:26][%cal Oe4e5] Threatening e5!} a6 {[%emt 0:00:07]} (7... Be7 $11 {keeps the balance.}) 8. Nd5 $16 {[%emt 0:00:43] White is better.} Nxd5 {[%emt 0:01:06]} 9. exd5 {[%emt 0:00:03] And now Ng5 would win.} Ne7 {[%emt 0:00:06]} 10. c4 {[%emt 0:00:12]} Ng6 {[%emt 0:00:02]} 11. b4 {[%emt 0:00:30]} cxb4 {[%emt 0:00:44]} 12. Bb2 {[%emt 0:00:03] [#]} (12. h4 $11) 12... Bc5+ $1 $17 {[%emt 0:00:28]} 13. d4 {[%emt 0:00:32]} Be7 {[%emt 0:00:01]} 14. d6 {[%emt 0:03:01]} (14. a3 $17 {is a better defense.}) 14... Bxd6 {[%emt 0:00:37]} (14... Qxd6 $19 {...Qc7 is the strong threat.} 15. Qc2 O-O) 15. c5 {[%emt 0:00:04]} (15. h4 $17) 15... Be7 $19 {[%emt 0:00:02]} 16. Bc4 {[%emt 0:00:33]} O-O {[%emt 0:00:13]} 17. Qb3 {[%emt 0:00:38]} d6 {[%emt 0:00:43][%cal Bd7d6,Bd6c5][%mdl 32]} 18. Bd5 {[%emt 0:00:47]} dxc5 {[%emt 0:00:39]} 19. Rac1 {[%emt 0:00:02]} Bg4 {[%emt 0:02:50]} 20. Ne5 {[%emt 0:01:06]} (20. Qxb4 $142 Qd7 21. Qb3) 20... Rad8 $4 {[%emt 0:01:22][%mdl 8192]} 21. Bxf7+ $18 {[%emt 0:02:06]} (21. Nxg4 Qd7 22. Bf3 cxd4 $11) 21... Kh8 {[%emt 0:00:22] Hoping for ...Nxe5.} 22. Bxg6 {[%emt 0:00:03]} (22. Nxg4 Qc6 23. Kh1 a5 24. Bxg6 Qxg6 $18) 22... hxg6 {[%emt 0:03:31]} 23. Nxg4 {[%emt 0:00:05]} Rf5 {[%emt 0:00:33]} 24. Ne5 {[%emt 0:00:39]} Kh7 {[%emt 0:00:15]} 25. Rf3 {[%emt 0:00:55]} Rh5 {[%emt 0:02:01]} 26. Qf7 {[%emt 0:01:03]} Qd6 {[%emt 0:02:43]} 27. Nc4 $2 {[%emt 0:02:07] Dancing on a razor blade.} (27. Rxc5 $18 {has better winning chances.} Qf6 28. Rc7 (28. Rxf4 Qxf7 29. Nxf7 Rxc5 $11) 28... Qxf7 29. Nxf7) 27... Qf6 $16 {[%emt 0:00:45]} 28. Rxf4 $40 {[%emt 0:00:12][%mdl 128] White attacks with force.} Qg5 {[%emt 0:00:24][%mdl 8192]} (28... Qxf7 $16 29. Rxf7 Bg5) 29. d5 $18 {[%emt 0:00:34][%csl Gb2][%cal Rf7g7]} Rg8 {[%emt 0:00:26]} 30. Re1 {[%emt 0:01:00]} Bd8 {[%emt 0:00:15] [#]} 31. Re8 {[%emt 0:00:24]} (31. Qxg8+ $142 $3 {[%mdl 512]} Kxg8 32. Re8+ Kh7 33. Rff8 Qe3+ 34. Nxe3 g5 35. Rf7 Bf6 36. Bxf6) 31... Qxf4 {[%emt 0:00:35]} 32. Qxg8+ {[%emt 0:00:40] White mates.} ({Less strong is} 32. Qxf4 Rxe8 33. d6 (33. Qf7 $2 Re1+ 34. Kf2 Re7 $19) 33... Rf5 $16) 32... Kh6 {[%emt 0:00:01]} 33. Qxg7+ {[%emt 0:00:14]} Kg5 {[%emt 0:00:02]} 34. Re5+ {[%emt 0:00:10]} Kg4 {[%emt 0:00:20]} 35. Ne3+ {[%emt 0:00:06] Quite a comeback for White.  Weighted Error Value: White=0.58/Black=0.84} 1-0

[Event "Czech Open-Rapid 2022"]
[Site "Pardubice"]
[Date "2022.07.21"]
[Round "5.23"]
[White "Babula, Vlastimil jr"]
[Black "Kroulik, Vaclav"]
[Result "1-0"]
[ECO "A45"]
[WhiteElo "2039"]
[BlackElo "1749"]
[Annotator "TA"]
[PlyCount "135"]
[EventDate "2022.07.20"]
[EventType "swiss"]
[EventCountry "CZE"]
[SourceTitle "playchess.com"]
[Source "ChessBase"]
[SourceQuality "1"]
[TimeControl "1200+10"]

{[%evp 9,135,-14,3,1,2,10,0,7,5,4,18,14,14,-63,-6,-16,-15,-45,0,-20,-16,-17,-19,-27,-7,-32,-32,-32,-27,-43,0,0,0,0,0,0,0,0,0,0,0,0,32,12,27,31,38,60,48,26,101,80,160,135,265,147,214,229,249,237,236,177,330,202,270,197,211,191,158,208,330,314,557,531,512,277,272,243,485,474,427,327,320,267,493,418,577,546,712,561,958,574,567,570,569,561,546,493,432,277,316,177,166,165,150,123,212,211,202,184,199,183,302,181,1629,1621,1379,1454,1162,560,29962,29964,29974,29973,29973,29975,29972,29968]} 1. d4 {[%emt 0:00:02]} Nf6 {[%emt 0:00:01]} 2. Nc3 {[%emt 0:00:01]} d5 {[%emt 0:00:05]} 3. Bf4 {[%emt 0:00:02]} Bf5 {[%emt 0:00:07]} 4. f3 {[%emt 0:00:02]} Bg6 {[%emt 0:00:19]} 5. g4 {[%emt 0:00:05]} e6 {[%emt 0:00:47]} 6. h4 {[%emt 0:00:03] Hoping for h5. D00: 1 d4 d5: Unusual lines.} h5 {[%emt 0:00:22] 6...h5 is better than 6...h6.} 7. g5 {[%emt 0:00:01]} Nfd7 {[%emt 0:00:03]} 8. e3 {[%emt 0:00:04] The position is equal.} Bb4 {[%emt 0:00:39]} 9. Bd3 {[%emt 0:00:21]} Bxd3 {[%emt 0:00:36]} 10. Qxd3 {[%emt 0:00:52]} c5 {[%emt 0:00:16]} 11. dxc5 {[%emt 0:00:48] [#]} (11. O-O-O $11) 11... Bxc5 $146 {[%emt 0:00:45]} (11... Nc6 $15 12. a3 Bxc5) ({Predecessor:} 11... Nc6 12. a3 Qa5 13. Bd6 Nxc5 14. Bxc5 Bxc5 15. Nge2 Ne5 16. Qb5+ Qxb5 17. Nxb5 Rc8 {0-1 (40) Hechl,F (2066)-Kruckenhauser,A (2012) Sankt Veit an der Glan 2019}) 12. O-O-O {[%emt 0:01:47]} Nc6 {[%emt 0:00:26]} 13. Nge2 {[%emt 0:01:00]} Qa5 {[%emt 0:00:21] Inhibits Na4.} 14. Kb1 {[%emt 0:02:23]} Nde5 {[%emt 0:01:03]} 15. Qb5 {[%emt 0:01:59]} Qxb5 {[%emt 0:00:29]} 16. Nxb5 {[%emt 0:00:03] Nc7+ is the strong threat.} O-O-O {[%emt 0:00:16] Inhibits Nc7.} 17. Ned4 {[%emt 0:01:37]} a6 {[%emt 0:00:37]} 18. Nxc6 {[%emt 0:00:59]} Nxc6 {[%emt 0:00:10]} 19. Nd4 {[%emt 0:00:03]} Rhe8 {[%emt 0:00:52]} (19... Bxd4 $5 20. exd4 Kd7 $11) 20. Nxc6 {[%emt 0:00:15]} bxc6 {[%emt 0:00:02]} 21. Be5 {[%emt 0:00:06]} Bxe3 {[%emt 0:00:58]} 22. Bxg7 {[%emt 0:00:04]} Bf4 {[%emt 0:00:56] Against Be5} 23. Bf6 {[%emt 0:01:27]} Rd7 {[%emt 0:00:23]} 24. c4 {[%emt 0:00:17]} Kb7 {[%emt 0:00:43]} 25. Kc2 {[%emt 0:00:18]} Rc8 {[%emt 0:01:02]} 26. Rd3 {[%emt 0:00:21]} c5 {[%emt 0:00:33]} 27. Rhd1 {[%emt 0:01:40][%cal Rc4d5]} d4 {[%emt 0:00:17]} 28. Re1 {[%emt 0:00:33]} Kc6 {[%emt 0:00:49]} 29. Be5 {[%emt 0:00:28]} Be3 {[%emt 0:00:31]} (29... Bxe5 $11 {keeps the balance.} 30. Rxe5 Kd6) 30. Rf1 {[%emt 0:00:22]} Rg8 {[%emt 0:02:01]} (30... a5 $142) 31. f4 {[%emt 0:01:05]} Re7 {[%emt 0:01:20]} (31... a5 $16 {might work better.}) 32. Rf3 {[%emt 0:00:23]} ({Better is} 32. Rb3 $18) 32... Rd7 {[%emt 0:01:34]} (32... f5 $16 33. Rfxe3 dxe3) 33. Ra3 $18 {[%emt 0:00:40]} Kb6 {[%emt 0:00:32]} 34. Kd3 {[%emt 0:00:02]} Re7 {[%emt 0:00:35]} 35. Ke4 {[%emt 0:00:16]} Ree8 $2 {[%emt 0:00:39]} (35... Rc8 36. f5 Rce8) 36. Rd3 {[%emt 0:00:46]} Kc6 {[%emt 0:01:20]} 37. Rfxe3 {[%emt 0:01:21]} dxe3 {[%emt 0:00:13][%mdl 4096] Endgame KRR-KRB} 38. Rd6+ {[%emt 0:00:01]} Kb7 {[%emt 0:00:06] Strongly threatening ...e2.} 39. Rd7+ {[%emt 0:00:02]} Ka8 {[%emt 0:00:20]} (39... Kc6 $142 40. Rc7+ Kb6 41. Kxe3 Rgf8) 40. Kxe3 {[%emt 0:00:05]} Rd8 $2 {[%emt 0:00:52]} (40... Ref8 41. b3 a5) 41. Rxf7 {[%emt 0:00:06]} Rd1 {[%emt 0:00:50]} 42. Bf6 {[%emt 0:00:54] And now Rh7 would win.} Re1+ {[%emt 0:00:07]} 43. Kf2 {[%emt 0:00:04]} Re4 {[%emt 0:00:06]} (43... Rh1 44. Re7 Rxh4) 44. Kf3 {[%emt 0:00:01]} Rxc4 {[%emt 0:00:05]} 45. Re7 {[%emt 0:00:05]} Rc1 {[%emt 0:00:26]} 46. Rxe6 {[%emt 0:00:10]} Kb7 $2 {[%emt 0:00:01]} (46... Rh1 47. Be5 (47. Rxa6+ Kb7 $18) 47... Rh3+ 48. Ke4 Rxh4) 47. Be5 {[%emt 0:00:28]} Rh1 {[%emt 0:00:28]} 48. g6 {[%emt 0:00:55]} Rxh4 {[%emt 0:00:13]} 49. g7 {[%emt 0:00:02] Threatens to win with Re7+.} Rg4 {[%emt 0:00:22]} 50. Rh6 {[%emt 0:00:04]} R4xg7 {[%emt 0:00:15]} 51. Bxg7 {[%emt 0:00:02]} Rxg7 {[%emt 0:00:01]} 52. Rxh5 {[%emt 0:00:31] KR-KR} Kc6 {[%emt 0:00:01]} 53. Rh2 {[%emt 0:00:15]} Kd5 {[%emt 0:00:13]} 54. Rh6 {[%emt 0:00:34]} Ra7 {[%emt 0:00:08]} 55. Ke3 {[%emt 0:00:16]} (55. f5 $142) 55... Re7+ {[%emt 0:00:06] [#]} 56. Kd3 $1 {[%emt 0:00:12]} c4+ {[%emt 0:00:12] [#]} 57. Kd2 $1 {[%emt 0:00:05]} Rf7 {[%emt 0:00:15]} (57... a5 $16) 58. Ke3 {[%emt 0:00:56]} ({Not} 58. Rxa6 Rxf4 59. Ra8 Kc5 $14) 58... Re7+ {[%emt 0:00:05]} 59. Kf3 {[%emt 0:00:02]} Rb7 {[%emt 0:00:03]} 60. Rh2 {[%emt 0:00:10]} ({Worse is} 60. Rxa6 Rxb2 61. Ke3 c3 $11) 60... Rg7 {[%emt 0:00:10]} (60... a5 {was called for.} 61. Rd2+ Ke6) 61. Rd2+ {[%emt 0:00:01]} (61. Re2 $142) 61... Kc5 $2 {[%emt 0:00:02]} (61... Ke6 62. Ke4 Re7) 62. f5 {[%emt 0:00:02]} a5 {[%emt 0:00:08]} 63. Kf4 {[%emt 0:00:02]} Rf7 {[%emt 0:00:06]} 64. Ke5 {[%emt 0:00:06]} (64. Kg5 $142 Rg7+ 65. Kh6) 64... c3 {[%emt 0:00:20]} 65. bxc3 {[%emt 0:00:08] White mates.} Kc4 {[%emt 0:00:01]} 66. Rd4+ {[%emt 0:00:46]} Kxc3 {[%emt 0:00:02]} 67. Ra4 {[%emt 0:00:01]} Ra7 {[%emt 0:00:17]} 68. f6 {[%emt 0:00:04] Weighted Error Value: White=0.35/Black=0.43} 1-0